bitfinex/quotes_SOLUSD_20241231
["timestamp","ask_amount","ask_price","bid_price","bid_amount"]
[1735654379417,0.12549,197.29,197.2,1.08]
[1735654379604,24.153354,197.29,197.2,1.08]
[1735654380018,24.153354,197.27,197.19,1.08]
[1735654380717,24.153354,197.27,197.18,1.08]
[1735654381036,0.37647,197.27,197.22,1.08]
[1735654381201,0.25098,197.27,197.23,1.08]
[1735654381403,0.25098,197.27,197.13,1.586]
[1735654381404,6.336,197.28,197.25,1.08]
[1735654381703,6.336,197.28,197.26,1.08]
[1735654381905,5.0688,197.28,197.26,1.08]
[1735654382428,1.2669,197.32,197.3,1.08]
[1735654382934,1.2669,197.32,197.31,1.08]
[1735654383135,6.707,197.43,197.34,1.08]
[1735654383334,1.2663,197.42,197.33,1.08]
[1735654383521,1.2663,197.42,197.34,1.08]
[1735654383522,3.7989,197.42,197.34,1.08]
[1735654383826,6.3315,197.42,197.36,1.08]
[1735654383999,6.3315,197.42,197.37,1.08]
[1735654384427,6.3315,197.42,197.36,1.08]
[1735654384814,6.3315,197.42,197.33,2.7119]
[1735654385023,5.0652,197.42,197.34,1.08]
[1735654385336,0.12549,197.41,197.33,1.4049]
[1735654385627,0.25098,197.41,197.33,1.4049]
[1735654385924,0.25098,197.4,197.33,1.4049]
[1735654386118,1.2665,197.39,197.33,1.4049]
[1735654387409,5.0652,197.42,197.33,1.4049]
[1735654388110,0.37647,197.41,197.33,1.4049]
[1735654388805,5.0652,197.42,197.33,1.4049]
[1735654390607,1.2664,197.4,197.33,1.4049]
[1735654391306,1.2664,197.4,197.26,5.0]
[1735654391307,1.2664,197.4,197.28,1.6548]
[1735654391710,1.2664,197.4,197.3,5.0]
[1735654391932,1.2664,197.4,197.28,27.2023409]
[1735654392339,1.2664,197.4,197.28,11.6548]
[1735654392627,2.5326,197.42,197.28,11.6548]
[1735654392833,2.5326,197.42,197.28,17.2023409]
[1735654393007,2.5326,197.42,197.28,1.6548]
[1735654393210,0.37647,197.41,197.28,1.6548]
[1735654393423,24.153354,197.41,197.28,1.6548]
[1735654395035,24.153354,197.39,197.28,1.6548]
[1735654396137,0.37647,197.37,197.28,1.6548]
[1735654396639,24.153354,197.37,197.26,6.2439]
[1735654397236,24.153354,197.37,197.23,1.6548]
[1735654398029,3.8001,197.36,197.23,1.6548]
[1735654398533,24.153354,197.35,197.23,1.6548]
[1735654399141,0.37647,197.35,197.23,1.6548]
[1735654399656,1.2668,197.34,197.23,1.6548]
[1735654401636,0.37647,197.37,197.23,1.6548]
[1735654401942,1.64307,197.37,197.23,1.6548]
[1735654404259,0.37647,197.35,197.23,1.6548]
[1735654405649,1.2668,197.34,197.23,1.6548]
[1735654407259,3.7999,197.37,197.23,1.6548]
[1735654408053,1.2666,197.37,197.23,6.6548]
[1735654408251,1.2666,197.37,197.24,5.0]
[1735654409157,1.2666,197.37,197.23,1.6548]
[1735654409858,1.2666,197.37,197.24,5.0]
[1735654410032,1.2666,197.37,197.26,5.0]
[1735654410630,1.2666,197.37,197.25,10.0]
[1735654410853,1.2666,197.37,197.26,5.0]
[1735654411050,1.2666,197.37,197.27,5.0]
[1735654411649,1.2664,197.4,197.27,5.0]
[1735654411853,1.2664,197.4,197.28,5.0]
[1735654413347,1.2664,197.4,197.25,5.0]
[1735654413664,1.2664,197.4,197.26,5.0]
[1735654414051,1.2664,197.4,197.3,5.0]
[1735654414438,1.2664,197.4,197.28,10.0]
[1735654414647,1.2664,197.4,197.27,5.0]
[1735654414846,1.2664,197.4,197.28,10.0]
[1735654415043,2.5326,197.42,197.28,5.0]
[1735654417175,2.5326,197.42,197.29,5.0]
[1735654417664,2.5326,197.42,197.29,10.0]
[1735654418161,2.5326,197.42,197.29,5.0]
[1735654418464,2.5326,197.42,197.29,10.0]
[1735654418665,2.5326,197.42,197.3,5.0]
[1735654419161,1.2664,197.4,197.27,15.5475409]
[1735654419348,1.2664,197.4,197.28,5.0]
[1735654419541,1.2664,197.4,197.28,10.0]
[1735654420153,1.2664,197.4,197.28,5.0]
[1735654420348,1.2664,197.4,197.27,15.5475409]
[1735654420349,2.5326,197.42,197.27,15.5475409]
[1735654420555,2.5326,197.42,197.26,5.0]
[1735654420752,2.5326,197.42,197.27,5.0]
[1735654421149,2.5326,197.42,197.28,5.0]
[1735654421474,2.5326,197.42,197.27,5.0]
[1735654423146,2.5326,197.42,197.27,10.0]
[1735654423346,2.5326,197.42,197.27,5.0]
[1735654423568,2.5326,197.42,197.25,20.5475409]
[1735654423947,1.2664,197.4,197.25,15.5475409]
[1735654424180,1.2664,197.4,197.25,20.5475409]
[1735654424372,1.2664,197.4,197.24,5.0]
[1735654424562,1.2664,197.4,197.25,14.8908389]
[1735654425171,1.2664,197.4,197.26,5.0]
[1735654425351,1.2664,197.4,197.25,5.0]
[1735654425553,1.2664,197.4,197.25,14.8908389]
[1735654425754,1.2664,197.4,197.27,14.8908389]
[1735654426349,1.2664,197.4,197.27,5.0]
[1735654427372,2.5326,197.42,197.27,5.0]
[1735654428157,2.5326,197.42,197.27,10.0]
[1735654428356,2.5326,197.42,197.28,9.8908389]
[1735654429678,2.5326,197.42,197.27,10.0]
[1735654429852,2.5326,197.42,197.27,5.0]
[1735654430371,2.5326,197.42,197.27,10.0]
[1735654431671,2.5326,197.42,197.29,5.0]
[1735654431973,2.5326,197.42,197.27,5.0]
[1735654432188,2.5326,197.42,197.28,5.0]
[1735654432393,2.5326,197.42,197.29,5.0]
[1735654432553,1.2662,197.44,197.33,5.0]
[1735654432749,1.2662,197.44,197.32,5.0]
[1735654433180,1.2662,197.44,197.31,11.6482]
[1735654433476,1.2662,197.44,197.31,1.6482]
[1735654434088,7.94236744,197.45,197.35,5.0]
[1735654434456,7.94236744,197.45,197.34,5.0]
[1735654435083,9.20846744,197.45,197.34,5.0]
[1735654435249,9.20846744,197.45,197.34,10.0]
[1735654435777,9.20846744,197.45,197.33,5.0]
[1735654435974,9.20846744,197.45,197.34,5.0]
[1735654436178,9.20846744,197.45,197.33,5.0]
[1735654436877,9.20846744,197.45,197.31,6.6482]
[1735654437077,9.20846744,197.45,197.31,1.6482]
[1735654437380,9.20846744,197.45,197.31,6.6482]
[1735654437578,9.20846744,197.45,197.31,11.6482]
[1735654438081,9.20846744,197.45,197.32,5.0]
[1735654438280,1.2661,197.45,197.32,10.0]
[1735654438463,1.2661,197.45,197.32,5.0]
[1735654438661,1.2661,197.45,197.32,10.0]
[1735654439477,1.2661,197.45,197.32,5.0]
[1735654439693,1.2661,197.45,197.31,1.6482]
[1735654440371,0.792,197.44,197.32,7.78477569]
[1735654440968,3.7987,197.43,197.31,9.43297569]
[1735654441478,3.7987,197.43,197.31,1.6482]
[1735654441866,3.7987,197.43,197.31,9.43297569]
[1735654442065,0.538611,197.32,197.31,9.43297569]
[1735654442581,0.792,197.44,197.32,28.776884]
[1735654442784,0.792,197.44,197.32,23.776884]
[1735654442785,1.2663,197.43,197.32,23.776884]
[1735654444169,1.2663,197.43,197.31,9.43297569]
[1735654445199,3.7988,197.43,197.31,1.6482]
[1735654448386,3.7988,197.43,197.31,11.6482]
[1735654448699,3.7988,197.43,197.32,9.8908389]
[1735654449599,1.2663,197.43,197.32,9.8908389]
[1735654449774,1.2663,197.43,197.34,14.8908389]
[1735654449973,1.2663,197.43,197.35,6.4856]
[1735654450486,1.2661,197.46,197.36,9.8908389]
[1735654450897,1.2661,197.46,197.38,9.8908389]
[1735654451807,1.2661,197.46,197.35,6.4856]
[1735654455793,1.2661,197.46,197.36,9.8908389]
[1735654458601,1.2661,197.46,197.35,6.4856]
[1735654462490,1.2661,197.46,197.36,9.8908389]
[1735654463580,1.2661,197.46,197.33,7.78477569]
[1735654463779,1.2661,197.46,197.4,9.8908389]
[1735654463981,1.2661,197.46,197.38,9.8908389]
[1735654464181,1.2661,197.46,197.36,9.8908389]
[1735654469505,1.2661,197.46,197.35,10.0]
[1735654469811,1.2661,197.46,197.35,43.6677229]
[1735654470187,1.2661,197.46,197.35,38.6677229]
[1735654470726,1.2661,197.46,197.35,43.6677229]
[1735654471317,20.85220777,197.47,197.37,5.0]
[1735654472246,20.85220777,197.47,197.37,23.776884]
[1735654472407,20.85220777,197.47,197.37,28.776884]
[1735654472810,20.85220777,197.47,197.36,0.37647]
[1735654473000,20.85220777,197.47,197.37,23.776884]
[1735654473624,20.85220777,197.47,197.37,33.6677229]
[1735654473943,20.85220777,197.47,197.37,38.6677229]
[1735654475438,20.85220777,197.47,197.37,33.6677229]
[1735654475643,20.85220777,197.47,197.37,9.8908389]
[1735654476446,20.85220777,197.47,197.37,33.6677229]
[1735654476608,20.85220777,197.47,197.35,12.78477569]
[1735654476812,20.85220777,197.47,197.36,9.8908389]
[1735654477313,22.11820777,197.47,197.36,9.8908389]
[1735654477547,20.85220777,197.47,197.44,9.8908389]
[1735654477838,20.85220777,197.47,197.44,5.0]
[1735654478045,20.85220777,197.47,197.43,33.6677229]
[1735654478201,20.85220777,197.47,197.44,9.8908389]
[1735654478507,20.85220777,197.47,197.43,33.6677229]
[1735654478936,20.85220777,197.47,197.41,5.0]
[1735654478937,20.85220777,197.47,197.4,7.78477569]
[1735654479340,20.85220777,197.47,197.4,28.776884]
[1735654479546,20.85220777,197.47,197.4,33.6677229]
[1735654480447,20.85220777,197.47,197.42,14.8908389]
[1735654480615,20.85220777,197.47,197.43,9.8908389]
[1735654480946,20.85220777,197.47,197.42,14.8908389]
[1735654481122,20.85220777,197.47,197.41,9.8908389]
[1735654481322,20.85220777,197.47,197.4,23.776884]
[1735654481838,20.85220777,197.47,197.4,33.6677229]
[1735654482318,20.85220777,197.47,197.39,11.5041389]
[1735654483618,20.85220777,197.47,197.39,1.6133]
[1735654484615,20.85220777,197.47,197.4,23.776884]
[1735654484816,20.85220777,197.47,197.41,9.8908389]
[1735654485918,20.85220777,197.47,197.4,23.776884]
[1735654486238,20.85220777,197.47,197.41,9.8908389]
[1735654486625,20.85220777,197.47,197.41,14.8908389]
[1735654486816,20.85220777,197.47,197.42,9.8908389]
[1735654487017,20.85220777,197.47,197.41,9.8908389]
[1735654488337,20.85220777,197.47,197.41,14.8908389]
[1735654489745,20.85220777,197.47,197.41,9.8908389]
[1735654489941,20.85220777,197.47,197.4,33.6677229]
[1735654490130,20.85220777,197.47,197.41,9.8908389]
[1735654490322,20.85220777,197.47,197.42,9.8908389]
[1735654490518,20.85220777,197.47,197.39,19.28891459]
[1735654490925,20.85220777,197.47,197.41,9.8908389]
[1735654492039,20.85220777,197.47,197.42,9.8908389]
[1735654492643,20.85220777,197.47,197.41,33.6677229]
[1735654493639,20.85220777,197.47,197.42,9.8908389]
[1735654496631,20.85220777,197.47,197.41,33.6677229]
[1735654496837,20.85220777,197.47,197.41,38.6677229]
[1735654497039,20.85220777,197.47,197.42,9.8908389]
[1735654498448,20.85220777,197.47,197.41,24.153354]
[1735654498646,20.85220777,197.47,197.41,34.0441929]
[1735654498843,20.85220777,197.47,197.41,24.153354]
[1735654499041,20.85220777,197.47,197.41,34.0441929]
[1735654499849,20.85220777,197.47,197.4,20.44937569]
[1735654500153,20.85220777,197.47,197.4,30.34021459]
[1735654500336,20.85220777,197.47,197.41,23.776884]
[1735654501026,20.85220777,197.47,197.41,33.6677229]
[1735654501451,20.85220777,197.47,197.43,23.776884]
[1735654501642,20.85220777,197.47,197.43,33.6677229]
[1735654501841,20.85220777,197.47,197.44,9.8908389]
[1735654502428,20.85220777,197.47,197.46,45.2308229]
[1735654502749,3.22201935,197.47,197.46,45.2308229]
[1735654502935,3.22201935,197.47,197.46,45.6072929]
[1735654503137,1.935e-05,197.47,197.46,62.36802124]
[1735654503655,1.935e-05,197.47,197.46,75.02872124]
[1735654504126,1.935e-05,197.47,197.46,44.84788234]
[1735654504323,1.935e-05,197.47,197.46,46.70155124]
[1735654505228,1.935e-05,197.47,197.46,36.70155124]
[1735654505629,1.935e-05,197.47,197.46,37.07802124]
[1735654506235,1.935e-05,197.47,197.46,27.18718234]
[1735654506442,1.935e-05,197.47,197.46,35.13845124]
[1735654506643,1.935e-05,197.47,197.46,1.47072834]
[1735654507358,1.935e-05,197.47,197.44,9.8908389]
[1735654507735,1.935e-05,197.47,197.43,23.776884]
[1735654507935,1.935e-05,197.47,197.43,33.6677229]
[1735654508136,1.935e-05,197.47,197.43,9.8908389]
[1735654508338,1.935e-05,197.47,197.43,33.6677229]
[1735654508537,1.935e-05,197.47,197.44,9.8908389]
[1735654508747,1.935e-05,197.47,197.45,9.8908389]
[1735654509059,1.935e-05,197.47,197.46,9.8908389]
[1735654509245,1.935e-05,197.47,197.45,9.8908389]
[1735654509783,1.935e-05,197.47,197.46,9.8908389]
[1735654510053,1.935e-05,197.47,197.45,9.8908389]
[1735654511357,1.935e-05,197.47,197.44,9.8908389]
[1735654512059,1.935e-05,197.47,197.43,0.37647]
[1735654512267,1.935e-05,197.47,197.44,9.8908389]
[1735654512762,1.935e-05,197.47,197.43,10.2673089]
[1735654513065,1.935e-05,197.47,197.43,9.8908389]
[1735654513380,1.935e-05,197.47,197.42,23.776884]
[1735654513669,1.935e-05,197.47,197.42,33.6677229]
[1735654514037,1.935e-05,197.47,197.42,9.8908389]
[1735654514252,1.935e-05,197.47,197.4,17.67561459]
[1735654514644,1.935e-05,197.47,197.42,9.8908389]
[1735654514853,1.935e-05,197.47,197.43,9.8908389]
[1735654516456,1.935e-05,197.47,197.42,9.8908389]
[1735654517866,1.935e-05,197.47,197.44,9.8908389]
[1735654518067,1.935e-05,197.47,197.46,9.8908389]
[1735654518250,1.935e-05,197.47,197.46,44.0441929]
[1735654519053,1.935e-05,197.47,197.46,59.3341929]
[1735654519253,1.935e-05,197.47,197.46,67.29225814]
[1735654519756,1.935e-05,197.47,197.46,75.07703383]
[1735654519963,7.4363,197.62,197.49,0.37647]
[1735654520159,7.4363,197.62,197.51,9.8908389]
[1735654521467,7.4363,197.62,197.47,15.29]
[1735654521652,7.4363,197.62,197.5,9.8908389]
[1735654521837,7.4363,197.62,197.51,9.8908389]
[1735654522042,7.4363,197.62,197.52,33.6677229]
[1735654522239,7.4363,197.62,197.54,9.8908389]
[1735654522469,7.4363,197.62,197.55,9.8908389]
[1735654522470,0.792,197.62,197.55,9.8908389]
[1735654522773,0.792,197.62,197.54,33.6677229]
[1735654523154,0.792,197.62,197.54,9.8908389]
[1735654523546,0.792,197.62,197.5,39.443354]
[1735654524048,0.792,197.62,197.52,23.776884]
[1735654525047,0.792,197.62,197.52,9.8908389]
[1735654525373,0.792,197.62,197.51,9.8908389]
[1735654527355,0.792,197.62,197.52,9.8908389]
[1735654527553,0.792,197.62,197.53,9.8908389]
[1735654529170,0.792,197.62,197.55,9.8908389]
[1735654529354,0.792,197.62,197.54,23.776884]
[1735654529355,0.792,197.62,197.56,9.8908389]
[1735654529965,0.792,197.62,197.55,9.8908389]
[1735654530977,7.909,197.67,197.55,9.8908389]
[1735654531153,8.701,197.67,197.55,9.8908389]
[1735654532365,7.4363,197.67,197.55,9.8908389]
[1735654532555,7.4363,197.67,197.56,23.776884]
[1735654532756,7.4363,197.67,197.55,9.8908389]
[1735654533585,7.4363,197.67,197.55,23.776884]
[1735654534267,7.4363,197.67,197.55,33.6677229]
[1735654535284,7.4363,197.67,197.56,9.8908389]
[1735654535469,7.4363,197.67,197.55,23.776884]
[1735654535470,7.4363,197.67,197.57,9.8908389]
[1735654536272,7.4363,197.67,197.56,0.37647]
[1735654536455,7.4363,197.67,197.58,23.776884]
[1735654538077,7.4363,197.67,197.58,9.8908389]
[1735654538475,7.4363,197.67,197.6,23.776884]
[1735654538671,0.792,197.67,197.6,23.776884]
[1735654538986,17.1711,197.72,197.6,33.6677229]
[1735654539386,17.1711,197.72,197.61,9.8908389]
[1735654539700,17.1711,197.72,197.62,9.8908389]
[1735654539887,17.1711,197.72,197.61,9.8908389]
[1735654540266,17.1711,197.72,197.6,9.8908389]
[1735654541319,17.1711,197.72,197.61,9.8908389]
[1735654542516,17.1711,197.72,197.64,24.153354]
[1735654542808,10.0,197.72,197.65,9.8908389]
[1735654543193,10.0,197.72,197.64,34.0441929]
[1735654544278,10.0,197.72,197.66,9.8908389]
[1735654544800,10.0,197.72,197.67,23.776884]
[1735654546002,10.0,197.72,197.68,0.37647]
[1735654546302,10.0,197.72,197.67,23.776884]
[1735654546510,10.0,197.72,197.63,1.6548]
[1735654546715,10.0,197.72,197.64,9.8908389]
[1735654547305,10.0,197.72,197.63,1.6548]
[1735654547521,10.0,197.72,197.61,9.8908389]
[1735654548805,10.0,197.72,197.62,9.8908389]
[1735654550412,10.0,197.72,197.61,9.8908389]
[1735654551106,10.0,197.72,197.59,23.776884]
[1735654551107,10.0,197.72,197.62,9.8908389]
[1735654553005,10.0,197.72,197.61,9.8908389]
[1735654553190,10.0,197.72,197.62,9.8908389]
[1735654553510,10.0,197.72,197.62,24.153354]
[1735654553692,10.0,197.72,197.63,9.8908389]
[1735654554006,10.0,197.72,197.64,9.8908389]
[1735654554390,10.0,197.72,197.64,23.776884]
[1735654554693,10.0,197.72,197.62,9.8908389]
[1735654555289,10.0,197.72,197.63,34.0441929]
[1735654555702,10.0,197.72,197.64,9.8908389]
[1735654556104,10.0,197.72,197.63,24.153354]
[1735654556309,10.0,197.72,197.64,9.8908389]
[1735654556502,10.0,197.72,197.63,0.37647]
[1735654556816,10.0,197.72,197.63,34.0441929]
[1735654557492,10.0,197.72,197.64,9.8908389]
[1735654558295,10.0,197.72,197.63,10.2673089]
[1735654558497,10.0,197.72,197.64,23.776884]
[1735654559396,10.0,197.72,197.63,9.8908389]
[1735654559802,10.0,197.72,197.63,33.6677229]
[1735654560618,10.0,197.72,197.64,23.776884]
[1735654562015,7.2689,197.71,197.58,1.6548]
[1735654562200,7.2689,197.71,197.59,9.8908389]
[1735654562201,0.792,197.7,197.59,9.8908389]
[1735654562410,0.792,197.7,197.58,9.8908389]
[1735654562591,0.792,197.7,197.57,9.8908389]
[1735654563697,0.792,197.7,197.58,0.12549]
[1735654563903,0.792,197.7,197.6,9.8908389]
[1735654564216,0.792,197.7,197.58,0.37647]
[1735654564431,1.2646,197.69,197.57,9.8908389]
[1735654564928,1.2646,197.69,197.59,9.8908389]
[1735654565216,1.2646,197.69,197.57,9.8908389]
[1735654565403,1.2646,197.69,197.56,9.8908389]
[1735654567700,1.2646,197.69,197.57,9.8908389]
[1735654568210,1.2646,197.69,197.56,9.8908389]
[1735654569103,1.2646,197.69,197.53,0.37647]
[1735654569312,1.2646,197.69,197.56,9.8908389]
[1735654570024,1.2646,197.69,197.55,9.8908389]
[1735654570213,1.2646,197.69,197.56,23.776884]
[1735654570597,1.2646,197.69,197.56,33.6677229]
[1735654571013,1.2646,197.69,197.56,9.8908389]
[1735654572028,1.2646,197.69,197.58,9.8908389]
[1735654572204,0.792,197.7,197.6,9.8908389]
[1735654573525,0.792,197.7,197.6,23.776884]
[1735654574035,0.792,197.7,197.59,9.8908389]
[1735654574702,0.792,197.7,197.56,12.6539]
[1735654574703,0.792,197.7,197.6,9.8908389]
[1735654575317,0.792,197.7,197.59,9.8908389]
[1735654576217,2.0565,197.7,197.57,34.0441929]
[1735654577222,2.0565,197.7,197.58,1.46478228]
[1735654578005,2.0565,197.7,197.55,33.6677229]
[1735654578226,2.0565,197.7,197.56,9.8908389]
[1735654578430,2.0565,197.7,197.55,9.8908389]
[1735654579412,2.0565,197.7,197.56,9.8908389]
[1735654582111,2.0565,197.7,197.55,9.8908389]
[1735654582620,2.0565,197.7,197.56,9.8908389]
[1735654582808,2.0565,197.7,197.55,9.8908389]
[1735654583430,2.0565,197.7,197.56,1.46611583]
[1735654583809,2.0565,197.7,197.55,9.8908389]
[1735654585323,2.0565,197.7,197.59,9.8908389]
[1735654585932,2.0565,197.7,197.57,9.8908389]
[1735654588938,2.0565,197.7,197.55,23.776884]
[1735654589113,2.0565,197.7,197.56,9.8908389]
[1735654590511,2.0565,197.7,197.57,9.8908389]
[1735654591339,2.0565,197.7,197.58,9.8908389]
[1735654591518,2.0565,197.7,197.58,11.3579458]
[1735654592009,2.0565,197.7,197.58,9.8908389]
[1735654592616,2.0565,197.7,197.59,9.8908389]
[1735654593121,2.0565,197.7,197.6,1.46762965]
[1735654593839,2.0565,197.7,197.59,9.8908389]
[1735654594039,0.792,197.7,197.59,9.8908389]
[1735654594420,0.792,197.7,197.61,9.8908389]
[1735654594921,0.792,197.7,197.6,9.8908389]
[1735654595245,0.792,197.7,197.59,9.8908389]
[1735654595621,0.792,197.7,197.61,9.8908389]
[1735654596034,0.792,197.7,197.6,11.35847966]
[1735654596638,0.792,197.7,197.6,9.8908389]
[1735654598042,0.792,197.7,197.6,23.776884]
[1735654599446,0.792,197.7,197.59,9.8908389]
[1735654599941,0.792,197.7,197.6,1.46735444]
[1735654600743,0.792,197.7,197.58,38.996884]
[1735654600948,0.792,197.7,197.6,9.8908389]
[1735654601774,0.792,197.7,197.61,1.46791708]
[1735654602449,0.792,197.7,197.6,23.776884]
[1735654602744,0.792,197.7,197.6,33.6677229]
[1735654602942,0.792,197.7,197.62,33.6677229]
[1735654603546,10.0,197.72,197.62,22.5413389]
[1735654604425,10.0,197.72,197.63,1.46851737]
[1735654604746,10.0,197.72,197.62,37.7613389]
[1735654604941,10.0,197.72,197.63,23.776884]
[1735654605834,10.0,197.72,197.64,1.46859085]
[1735654606547,10.0,197.72,197.6,23.00477569]
[1735654606750,10.0,197.72,197.6,46.78165969]
[1735654606923,10.0,197.72,197.61,1.46903639]
[1735654607129,6.6663,197.69,197.61,1.46903639]
[1735654607537,6.6663,197.69,197.58,7.78477569]
[1735654607738,6.6663,197.69,197.57,7.78477569]
[1735654608147,1.2647,197.67,197.57,7.78477569]
[1735654608458,1.2647,197.67,197.58,1.46949851]
[1735654608626,0.12549,197.66,197.58,1.46949851]
[1735654608825,0.12549,197.66,197.57,7.78477569]
[1735654609026,0.792,197.64,197.57,7.78477569]
[1735654609747,0.792,197.64,197.46,1.5086]
[1735654609748,0.12549,197.63,197.46,1.5086]
[1735654610061,0.12549,197.63,197.48,9.8908389]
[1735654610260,1.265,197.62,197.48,11.36086163]
[1735654610554,0.12549,197.61,197.48,1.47002273]
[1735654610739,0.12549,197.61,197.49,1.47002273]
[1735654611050,0.792,197.58,197.45,9.8908389]
[1735654612039,0.792,197.58,197.46,1.46866553]
[1735654612232,2.0573,197.58,197.46,1.46866553]
[1735654612649,2.0573,197.58,197.47,1.46866553]
[1735654613258,2.0573,197.58,197.47,9.8908389]
[1735654613634,2.0573,197.58,197.48,1.46846514]
[1735654614434,2.0573,197.58,197.47,9.8908389]
[1735654614861,2.0573,197.58,197.48,9.8908389]
[1735654615057,2.0573,197.58,197.47,9.8908389]
[1735654615769,2.0573,197.58,197.46,9.8908389]
[1735654616566,2.0573,197.58,197.47,1.4671643]
[1735654617074,1.2654,197.56,197.47,1.4671643]
[1735654617458,0.792,197.58,197.47,9.8908389]
[1735654617658,2.5307,197.57,197.42,1.4671643]
[1735654617857,0.25098,197.54,197.42,1.4671643]
[1735654618064,5.25098,197.54,197.42,1.4671643]
[1735654618368,5.25098,197.54,197.43,1.4671643]
[1735654618369,0.25098,197.52,197.43,1.4671643]
[1735654618569,0.25098,197.51,197.43,1.4671643]
[1735654618778,0.25098,197.5,197.43,1.4671643]
[1735654618977,0.37647,197.47,197.36,1.4671643]
[1735654619572,0.37647,197.47,197.34,9.8908389]
[1735654619953,1.266,197.46,197.34,9.8908389]
[1735654620163,0.12549,197.45,197.33,9.8908389]
[1735654621177,1.2662,197.44,197.3,1.5697]
[1735654621392,1.2662,197.44,197.32,9.8908389]
[1735654621677,1.2662,197.44,197.29,1.46575808]
[1735654621678,0.25098,197.43,197.31,9.8908389]
[1735654621876,0.25098,197.43,197.3,9.8908389]
[1735654622051,0.25098,197.43,197.29,9.8908389]
[1735654622052,0.12549,197.41,197.29,9.8908389]
[1735654622255,0.792,197.4,197.28,9.8908389]
[1735654622464,0.12549,197.39,197.28,9.8908389]
[1735654622665,0.12549,197.39,197.27,9.8908389]
[1735654622861,0.25098,197.39,197.27,9.8908389]
[1735654623083,0.25098,197.39,197.26,9.8908389]
[1735654623250,0.25098,197.37,197.2,41.1330556]
[1735654623453,0.25098,197.37,197.23,9.8908389]
[1735654623874,0.12549,197.35,197.23,9.8908389]
[1735654624071,6.6249,197.36,197.27,9.8908389]
[1735654624587,6.6249,197.36,197.28,9.8908389]
[1735654624782,6.6249,197.36,197.27,9.8908389]
[1735654625143,6.6249,197.36,197.28,9.8908389]
[1735654625785,6.6249,197.36,197.27,9.8908389]
[1735654625985,6.6249,197.36,197.26,9.8908389]
[1735654626277,6.6249,197.36,197.2,1.5697]
[1735654626477,6.6249,197.36,197.24,9.8908389]
[1735654626781,0.12549,197.35,197.23,9.8908389]
[1735654626958,1.51768,197.35,197.23,9.8908389]
[1735654627395,1.39219,197.35,197.23,9.8908389]
[1735654627580,1.2667,197.35,197.24,9.8908389]
[1735654627976,1.2667,197.35,197.25,9.8908389]
[1735654628485,1.2667,197.35,197.24,9.8908389]
[1735654629350,1.2669,197.33,197.16,150.28]
[1735654629554,1.2669,197.33,197.2,9.8908389]
[1735654629863,0.792,197.31,197.19,9.8908389]
[1735654630280,0.25098,197.3,197.18,9.8908389]
[1735654630857,0.25098,197.3,197.17,9.8908389]
[1735654631097,0.25098,197.3,197.16,9.8908389]
[1735654631270,0.25098,197.3,197.15,1.5257]
[1735654631271,0.25098,197.3,197.17,9.8908389]
[1735654631591,1.51808,197.3,197.17,9.8908389]
[1735654631794,0.25098,197.28,197.16,9.8908389]
[1735654632856,1.51818,197.28,197.1,20.5042]
[1735654633095,0.25098,197.26,197.12,9.8908389]
[1735654633589,0.12549,197.25,197.12,9.8908389]
[1735654633751,0.12549,197.25,197.1,11.4165389]
[1735654633951,23.902374,197.25,197.1,9.8908389]
[1735654634258,23.902374,197.25,197.03,14.2095]
[1735654634259,6.1947,197.21,197.05,1.5257]
[1735654634463,6.1947,197.21,197.07,9.8908389]
[1735654634661,6.1947,197.21,197.08,9.8908389]
[1735654635387,6.1947,197.21,197.09,9.8908389]
[1735654635561,6.1947,197.21,197.1,9.8908389]
[1735654636183,0.12549,197.2,197.05,14.2122]
[1735654636366,0.12549,197.2,197.08,15.47586828]
[1735654636976,0.25098,197.2,197.08,15.47586828]
[1735654637288,0.25098,197.2,197.07,15.47586828]
[1735654637798,0.25098,197.2,197.06,15.47586828]